[Event "Skol-SM i Schack 2024, Grupp A"]
[Site "Arena Varberg, Kattegattsvagen 26, Varberg, Sweden"]
[Date "2024.10.12"]
[Round "6.12"]
[White "Wingh, Walter"]
[Black "Fredlund, Joel"]
[Result "0-1"]
[TimeControl "45 minutes + 10 seconds per move from move one."]
[WhiteFideId "1767836"]
[BlackFideId "1748157"]
[WhiteElo "1612"]
[BlackElo "1454"]

1. e4 {[%clk 00:45:14]} {[%emt 00:00:01]} e5 {[%clk 00:45:15]} {[%emt
00:00:07]} 2. Nc3 {[%clk 00:45:20]} {[%emt 00:00:02]} Nc6 {[%clk 00:45:15]}
{[%emt 00:00:11]} 3. Bc4 {[%clk 00:45:26]} {[%emt 00:00:03]} Nf6 {[%clk
00:45:07]} {[%emt 00:00:18]} 4. d3 {[%clk 00:45:30]} {[%emt 00:00:05]} Bb4
{[%clk 00:44:56]} {[%emt 00:00:22]} 5. a3 {[%clk 00:45:38]} {[%emt 00:00:03]}
Ba5 {[%clk 00:44:58]} {[%emt 00:00:07]} 6. Nf3 {[%clk 00:45:31]} {[%emt
00:00:16]} d6 {[%clk 00:44:53]} {[%emt 00:00:16]} 7. b4 {[%clk 00:45:13]}
{[%emt 00:00:28]} Bb6 {[%clk 00:45:00]} {[%emt 00:00:04]} 8. Na4 {[%clk
00:45:17]} {[%emt 00:00:04]} h6 {[%clk 00:44:24]} {[%emt 00:00:47]} 9. Nxb6
{[%clk 00:45:06]} {[%emt 00:00:22]} axb6 {[%clk 00:44:30]} {[%emt 00:00:04]} 10.
Bb2 {[%clk 00:45:03]} {[%emt 00:00:12]} Bg4 {[%clk 00:43:33]} {[%emt 00:01:07]}
11. h3 {[%clk 00:44:45]} {[%emt 00:00:28]} Bh5 {[%clk 00:43:28]} {[%emt
00:00:16]} 12. O-O {[%clk 00:44:50]} {[%emt 00:00:03]} Nd4 {[%clk 00:40:04]}
{[%emt 00:03:34]} 13. Bxd4 {[%clk 00:44:31]} {[%emt 00:00:30]} exd4 {[%clk
00:38:00]} {[%emt 00:02:15]} 14. g4 {[%clk 00:43:40]} {[%emt 00:01:00]} Nxg4
{[%clk 00:37:10]} {[%emt 00:01:00]} 15. hxg4 {[%clk 00:43:21]} {[%emt
00:00:29]} Bxg4 {[%clk 00:37:08]} {[%emt 00:00:12]} 16. Kg2 {[%clk 00:41:19]}
{[%emt 00:02:12]} Qf6 {[%clk 00:36:36]} {[%emt 00:00:43]} 17. Rh1 {[%clk
00:38:49]} {[%emt 00:02:38]} h5 {[%clk 00:33:58]} {[%emt 00:02:50]} 18. Qe2
{[%emt 00:00:29]} Rh6 {[%clk 00:30:31]} {[%emt 00:03:38]} 19. e5 {[%clk
00:35:23]} {[%emt 00:03:16]} Bxf3+ {[%clk 00:29:45]} {[%emt 00:00:55]} 20. Qxf3
{[%clk 00:35:31]} {[%emt 00:00:02]} Rg6+ {[%clk 00:29:52]} {[%emt 00:00:03]} 21.
Qg3 {[%clk 00:34:54]} {[%emt 00:00:47]} Rxg3+ {[%clk 00:29:50]} {[%emt
00:00:12]} 22. fxg3 {[%clk 00:35:02]} {[%emt 00:00:01]} dxe5 {[%clk 00:29:23]}
{[%emt 00:00:38]} 23. Rhf1 {[%clk 00:34:27]} {[%emt 00:00:46]} Qc6+ {[%clk
00:28:50]} {[%emt 00:00:43]} 24. Kh2 {[%clk 00:32:35]} {[%emt 00:02:01]} f6
{[%clk 00:28:31]} {[%emt 00:00:29]} 25. Rf5 {[%clk 00:31:22]} {[%emt 00:01:24]}
g6 {[%clk 00:26:54]} {[%emt 00:01:46]} 26. Rf2 {[%clk 00:31:30]} {[%emt
00:00:02]} Ke7 {[%clk 00:26:41]} {[%emt 00:00:23]} 27. Raf1 {[%clk 00:29:10]}
{[%emt 00:02:29]} Rf8 {[%clk 00:25:22]} {[%emt 00:01:30]} 28. b5 {[%clk
00:28:46]} {[%emt 00:00:34]} Qd7 {[%clk 00:24:45]} {[%emt 00:00:46]} 29. a4
{[%clk 00:28:11]} {[%emt 00:00:46]} Qg4 {[%clk 00:24:03]} {[%emt 00:00:52]} 30.
Bd5 {[%clk 00:25:26]} {[%emt 00:02:54]} h4 {[%clk 00:22:01]} {[%emt 00:02:13]}
31. gxh4 {[%clk 00:25:29]} {[%emt 00:00:07]} Rh8 {[%clk 00:21:46]} {[%emt
00:00:25]} 32. Kh1 {[%clk 00:25:01]} {[%emt 00:00:38]} Qxh4+ {[%clk 00:19:51]}
{[%emt 00:02:05]} 33. Kg1 {[%clk 00:24:55]} {[%emt 00:00:16]} Rh5 {[%clk
00:18:31]} {[%emt 00:01:31]} 34. Bxb7 {[%clk 00:23:57]} {[%emt 00:01:07]} Qg3+
{[%clk 00:16:14]} {[%emt 00:02:27]} 35. Rg2 {[%clk 00:23:52]} {[%emt 00:00:15]}
Qe3+ {[%clk 00:16:15]} {[%emt 00:00:10]} 36. Rff2 {[%clk 00:23:23]} {[%emt
00:00:37]} Rf5 {[%clk 00:15:50]} {[%emt 00:00:36]} 37. Kf1 {[%clk 00:18:49]}
{[%emt 00:04:44]} Qc1+ {[%clk 00:12:57]} {[%emt 00:03:02]} 38. Ke2 {[%clk
00:18:57]} {[%emt 00:00:02]} Qxc2+ {[%clk 00:12:58]} {[%emt 00:00:09]} 39. Ke1
{[%clk 00:19:05]} {[%emt 00:00:02]} Qc1+ {[%clk 00:12:54]} {[%emt 00:00:14]} 40.
Ke2 {[%clk 00:19:12]} {[%emt 00:00:03]} Qe3+ {[%clk 00:12:55]} {[%emt
00:00:09]} 41. Kf1 {[%clk 00:19:18]} {[%emt 00:00:04]} Qxd3+ {[%clk 00:12:36]}
{[%emt 00:00:29]} 42. Ke1 {[%clk 00:19:19]} {[%emt 00:00:09]} Qe3+ {[%clk
00:12:11]} {[%emt 00:00:35]} 43. Re2 {[%clk 00:18:55]} {[%emt 00:00:34]} Qc1#
{[%clk 00:12:09]} {[%emt 00:00:10]} 0-1

[Event "Skol-SM i Schack 2024, Grupp A"]
[Site "Arena Varberg, Kattegattsvagen 26, Varberg, Sweden"]
[Date "2024.10.12"]
[Round "3.1"]
[White "Fridman, Arvid"]
[Black "Joensson, Oscar"]
[Result "0-1"]
[TimeControl "45 minutes + 10 seconds per move from move one."]
[WhiteFideId "1758632"]
[BlackFideId "1729977"]
[WhiteElo "1895"]
[BlackElo "1955"]

1. d4 {[%clk 00:45:19]} d5 {[%clk 00:45:19]} {[%emt 00:00:02]} 2. c4 {[%clk
00:45:11]} {[%emt 00:00:18]} e6 {[%clk 00:45:28]} {[%emt 00:00:02]} 3. Nc3
{[%clk 00:45:00]} {[%emt 00:00:20]} Nf6 {[%clk 00:45:36]} {[%emt 00:00:02]} 4.
cxd5 {[%clk 00:45:08]} {[%emt 00:00:02]} exd5 {[%clk 00:45:44]} {[%emt
00:00:02]} 5. Bg5 {[%clk 00:45:16]} {[%emt 00:00:01]} c6 {[%clk 00:45:52]}
{[%emt 00:00:03]} 6. Qc2 {[%clk 00:45:19]} {[%emt 00:00:07]} Be7 {[%clk
00:45:58]} {[%emt 00:00:04]} 7. e3 {[%clk 00:45:27]} {[%emt 00:00:02]} h6
{[%clk 00:46:05]} {[%emt 00:00:03]} 8. Bh4 {[%clk 00:45:34]} O-O {[%clk
00:46:13]} {[%emt 00:00:03]} 9. Bd3 {[%clk 00:45:43]} {[%emt 00:00:02]} Re8
{[%clk 00:45:42]} {[%emt 00:00:41]} 10. Bg3 {[%clk 00:41:39]} {[%emt 00:04:14]}
Bd6 {[%clk 00:44:49]} {[%emt 00:01:03]} 11. Bxd6 {[%clk 00:38:48]} {[%emt
00:03:00]} Qxd6 {[%clk 00:44:56]} {[%emt 00:00:04]} 12. Nge2 {[%clk 00:38:54]}
{[%emt 00:00:03]} a5 {[%clk 00:44:44]} {[%emt 00:00:23]} 13. Ng3 {[%clk
00:37:09]} {[%emt 00:01:55]} b5 {[%clk 00:32:23]} {[%emt 00:12:31]} 14. O-O
{[%clk 00:35:05]} {[%emt 00:02:14]} Ba6 {[%clk 00:29:15]} {[%emt 00:03:18]} 15.
Rac1 {[%clk 00:33:24]} {[%emt 00:01:51]} a4 {[%clk 00:20:39]} {[%emt 00:08:46]}
16. a3 {[%clk 00:29:02]} {[%emt 00:04:33]} Nbd7 {[%clk 00:15:51]} {[%emt
00:04:57]} 17. Na2 {[%clk 00:26:23]} {[%emt 00:02:49]} Bb7 {[%clk 00:12:03]}
{[%emt 00:03:58]} 18. Nb4 {[%clk 00:25:16]} {[%emt 00:01:17]} Rac8 {[%clk
00:09:41]} {[%emt 00:02:32]} 19. Qe2 {[%clk 00:23:22]} {[%emt 00:02:04]} Nb6
{[%clk 00:09:12]} {[%emt 00:00:39]} 20. Qf3 {[%clk 00:21:57]} {[%emt 00:01:35]}
g6 {[%clk 00:07:33]} {[%emt 00:01:49]} 21. h4 {[%clk 00:17:47]} {[%emt
00:04:20]} h5 {[%clk 00:07:24]} {[%emt 00:00:19]} 22. Ne2 {[%clk 00:16:58]}
{[%emt 00:00:58]} Nc4 {[%clk 00:06:19]} {[%emt 00:01:16]} 23. Bxc4 {[%clk
00:15:16]} {[%emt 00:01:52]} bxc4 {[%clk 00:06:13]} {[%emt 00:00:16]} 24. Qf4
{[%clk 00:14:08]} {[%emt 00:01:18]} Qd8 {[%clk 00:04:45]} {[%emt 00:01:38]} 25.
Nc3 {[%clk 00:12:24]} {[%emt 00:01:53]} Ra8 {[%clk 00:03:55]} {[%emt 00:01:00]}
26. Rce1 {[%clk 00:12:23]} {[%emt 00:00:12]} Ne4 {[%clk 00:03:59]} {[%emt
00:00:06]} 27. f3 {[%clk 00:11:11]} {[%emt 00:01:22]} Nd2 {[%clk 00:02:26]}
{[%emt 00:01:43]} 28. Rf2 {[%clk 00:11:06]} {[%emt 00:00:14]} Nb3 {[%clk
00:02:34]} {[%emt 00:00:02]} 29. Qg3 {[%clk 00:09:36]} {[%emt 00:01:41]} Nxd4
{[%clk 00:01:59]} {[%emt 00:00:45]} 30. e4 {[%clk 00:08:56]} {[%emt 00:00:50]}
Nb5 {[%clk 00:01:41]} {[%emt 00:00:27]} 31. Nxb5 {[%clk 00:08:13]} {[%emt
00:00:54]} cxb5 {[%clk 00:01:50]} {[%emt 00:00:01]} 32. Nxd5 {[%clk 00:08:03]}
{[%emt 00:00:20]} Bxd5 {[%clk 00:00:54]} {[%emt 00:01:05]} 33. Rd2 {[%clk
00:08:12]} {[%emt 00:00:01]} Qb6+ {[%clk 00:00:54]} {[%emt 00:00:10]} 34. Kh2
{[%clk 00:08:05]} {[%emt 00:00:17]} Be6 {[%clk 00:01:02]} {[%emt 00:00:02]} 35.
Rd6 {[%clk 00:07:44]} {[%emt 00:00:32]} Qb8 {[%clk 00:01:11]} 36. Red1 {[%clk
00:07:52]} {[%emt 00:00:01]} b4 {[%clk 00:01:15]} {[%emt 00:00:06]} 37. axb4
{[%clk 00:07:31]} {[%emt 00:00:32]} Qxb4 {[%clk 00:01:24]} {[%emt 00:00:01]} 38.
R1d2 {[%clk 00:06:06]} {[%emt 00:01:35]} c3 {[%clk 00:01:24]} {[%emt 00:00:09]}
39. bxc3 {[%clk 00:06:15]} {[%emt 00:00:01]} Qxc3 {[%clk 00:01:33]} {[%emt
00:00:02]} 40. Qg5 {[%clk 00:06:25]} a3 {[%clk 00:01:16]} {[%emt 00:00:28]} 41.
f4 {[%clk 00:04:16]} {[%emt 00:02:18]} a2 {[%clk 00:01:22]} {[%emt 00:00:04]}
42. f5 {[%clk 00:04:19]} {[%emt 00:00:08]} Qe5+ {[%clk 00:01:31]} 43. g3 {[%clk
00:04:13]} {[%emt 00:00:15]} a1=Q {[%clk 00:01:37]} {[%emt 00:00:04]} 0-1

[Event "Skol-SM i Schack 2024, Grupp A"]
[Site "Arena Varberg, Kattegattsvagen 26, Varberg, Sweden"]
[Date "2024.10.12"]
[Round "4.5"]
[White "Stanton-Andersson, Coll"]
[Black "Wedenberg, Oliver"]
[Result "0-1"]
[TimeControl "45 minutes + 10 seconds per move from move one."]
[WhiteFideId "1758837"]
[BlackFideId "1767909"]
[WhiteElo "1542"]
[BlackElo "1858"]

1. e4 {[%clk 00:45:16]} {[%emt 00:00:03]} c5 {[%clk 00:45:18]} {[%emt
00:00:02]} 2. Nf3 {[%clk 00:44:53]} {[%emt 00:00:34]} Nc6 {[%clk 00:45:23]}
{[%emt 00:00:04]} 3. d4 {[%clk 00:44:41]} {[%emt 00:00:22]} cxd4 {[%clk
00:45:31]} {[%emt 00:00:02]} 4. Nxd4 {[%clk 00:44:42]} {[%emt 00:00:09]} e5
{[%clk 00:45:39]} {[%emt 00:00:02]} 5. Nf3 {[%clk 00:44:18]} {[%emt 00:00:34]}
Nf6 {[%clk 00:45:40]} {[%emt 00:00:09]} 6. Bg5 {[%clk 00:42:50]} {[%emt
00:01:38]} h6 {[%clk 00:41:12]} {[%emt 00:04:38]} 7. Bxf6 {[%clk 00:39:24]}
{[%emt 00:03:37]} Qxf6 {[%clk 00:41:17]} {[%emt 00:00:05]} 8. Bc4 {[%clk
00:38:04]} {[%emt 00:01:29]} Qg6 {[%clk 00:38:06]} {[%emt 00:03:22]} 9. Qd5
{[%clk 00:33:33]} {[%emt 00:04:41]} d6 {[%clk 00:35:58]} {[%emt 00:02:18]} 10.
Rg1 {[%clk 00:19:04]} {[%emt 00:14:38]} Bg4 {[%clk 00:31:27]} {[%emt 00:04:41]}
11. Nbd2 {[%clk 00:17:39]} {[%emt 00:01:36]} Be7 {[%clk 00:29:38]} {[%emt
00:01:58]} 12. h3 {[%clk 00:14:03]} {[%emt 00:03:40]} Bd7 {[%clk 00:26:24]}
{[%emt 00:03:30]} 13. O-O-O {[%clk 00:10:57]} {[%emt 00:03:16]} a6 {[%clk
00:23:47]} {[%emt 00:02:47]} 14. Bb3 {[%clk 00:09:38]} {[%emt 00:01:29]} b5
{[%clk 00:22:14]} {[%emt 00:01:44]} 15. Nb1 {[%clk 00:05:39]} {[%emt 00:04:09]}
O-O {[%clk 00:20:48]} {[%emt 00:01:36]} 16. Nc3 {[%clk 00:04:36]} {[%emt
00:01:12]} Rfc8 {[%clk 00:15:34]} {[%emt 00:05:24]} 17. g4 {[%clk 00:03:07]}
{[%emt 00:01:39]} Qf6 {[%clk 00:14:45]} {[%emt 00:00:57]} 18. Rg3 {[%clk
00:03:07]} {[%emt 00:00:12]} Na5 {[%clk 00:10:33]} {[%emt 00:04:23]} 19. h4
{[%clk 00:02:31]} {[%emt 00:00:44]} Nxb3+ {[%clk 00:10:02]} {[%emt 00:00:43]}
20. axb3 {[%clk 00:02:06]} {[%emt 00:00:35]} Bxg4 {[%clk 00:06:44]} {[%emt
00:03:28]} 21. Rxg4 {[%clk 00:01:33]} {[%emt 00:00:43]} Qxf3 {[%clk 00:06:52]}
{[%emt 00:00:02]} 22. Rdg1 {[%clk 00:01:27]} {[%emt 00:00:15]} Bf8 {[%clk
00:05:07]} {[%emt 00:01:56]} 23. Rg6 {[%clk 00:01:07]} {[%emt 00:00:29]} b4
{[%clk 00:04:03]} {[%emt 00:01:15]} 24. Na4 {[%clk 00:00:23]} {[%emt 00:00:54]}
Qxf2 {[%clk 00:03:42]} {[%emt 00:00:30]} 25. R6g2 {[%clk 00:00:17]} {[%emt
00:00:17]} Qe3+ {[%clk 00:02:54]} {[%emt 00:00:58]} 26. Qd2 {[%clk 00:00:14]}
{[%emt 00:00:13]} Qxd2+ {[%clk 00:02:28]} {[%emt 00:00:36]} 27. Kxd2 {[%clk
00:00:22]} {[%emt 00:00:02]} Rc6 {[%clk 00:02:15]} {[%emt 00:00:22]} 28. Rg3
{[%clk 00:00:28]} {[%emt 00:00:05]} Rd8 {[%clk 00:01:50]} {[%emt 00:00:35]} 29.
R1g2 {[%clk 00:00:20]} {[%emt 00:00:17]} g6 {[%clk 00:01:54]} {[%emt 00:00:06]}
30. h5 {[%clk 00:00:11]} {[%emt 00:00:19]} g5 {[%clk 00:01:59]} {[%emt
00:00:05]} 31. c3 {[%clk 00:00:19]} {[%emt 00:00:03]} d5 {[%clk 00:01:38]}
{[%emt 00:00:31]} 32. Ke3 {[%clk 00:00:24]} {[%emt 00:00:05]} d4+ {[%clk
00:01:17]} {[%emt 00:00:31]} 33. Ke2 {[%clk 00:00:24]} {[%emt 00:00:10]} Kg7
{[%clk 00:01:01]} {[%emt 00:00:26]} 34. Rf3 {[%clk 00:00:21]} {[%emt 00:00:12]}
Be7 {[%clk 00:01:01]} {[%emt 00:00:10]} 35. Rgf2 {[%clk 00:00:24]} {[%emt
00:00:08]} f6 {[%clk 00:00:40]} {[%emt 00:00:31]} 36. Rf5 {[%clk 00:00:00]} 0-1

[Event "Skol-SM i Schack 2024, Grupp A"]
[Site "Arena Varberg, Kattegattsvagen 26, Varberg, Sweden"]
[Date "2024.10.12"]
[Round "5.9"]
[White "Abdulkader, Ahmad"]
[Black "Schriever-Abeln, Marius"]
[Result "0-1"]
[TimeControl "45 minutes + 10 seconds per move from move one."]
[WhiteFideId "1776550"]
[BlackFideId "1752650"]
[WhiteElo "1613"]
[BlackElo "2009"]

1. e4 {[%clk 00:45:19]} c5 {[%clk 00:45:16]} {[%emt 00:00:05]} 2. Nf3 {[%clk
00:45:28]} d6 {[%clk 00:45:20]} {[%emt 00:00:07]} 3. d4 {[%clk 00:45:31]}
{[%emt 00:00:06]} cxd4 {[%clk 00:45:28]} {[%emt 00:00:03]} 4. Nxd4 {[%clk
00:45:40]} {[%emt 00:00:01]} Nf6 {[%clk 00:45:37]} 5. Nc3 {[%clk 00:45:49]}
{[%emt 00:00:01]} a6 {[%clk 00:45:46]} {[%emt 00:00:02]} 6. Be2 {[%clk
00:45:43]} {[%emt 00:00:15]} e5 {[%clk 00:45:50]} {[%emt 00:00:06]} 7. Nb3
{[%clk 00:45:51]} {[%emt 00:00:02]} Be7 {[%clk 00:45:46]} {[%emt 00:00:13]} 8.
O-O {[%clk 00:45:57]} {[%emt 00:00:03]} Be6 {[%clk 00:45:52]} {[%emt 00:00:05]}
9. Be3 {[%clk 00:45:39]} {[%emt 00:00:29]} O-O {[%clk 00:44:48]} {[%emt
00:01:14]} 10. f4 {[%clk 00:45:47]} {[%emt 00:00:02]} exf4 {[%clk 00:44:13]}
{[%emt 00:00:44]} 11. Bxf4 {[%clk 00:45:40]} {[%emt 00:00:17]} Nc6 {[%clk
00:44:03]} {[%emt 00:00:20]} 12. Be3 {[%clk 00:40:59]} {[%emt 00:04:51]} Ne5
{[%clk 00:41:14]} {[%emt 00:02:58]} 13. h3 {[%clk 00:40:08]} {[%emt 00:01:01]}
b5 {[%clk 00:39:35]} {[%emt 00:01:49]} 14. a3 {[%clk 00:38:19]} {[%emt
00:01:59]} Rc8 {[%clk 00:38:52]} {[%emt 00:00:54]} 15. Nd2 {[%clk 00:34:42]}
{[%emt 00:03:47]} Qc7 {[%clk 00:36:40]} {[%emt 00:02:21]} 16. Qe1 {[%clk
00:33:02]} {[%emt 00:01:50]} d5 {[%clk 00:34:28]} {[%emt 00:02:22]} 17. Rc1
{[%clk 00:29:03]} {[%emt 00:04:09]} Rcd8 {[%clk 00:30:31]} {[%emt 00:04:07]} 18.
exd5 {[%clk 00:24:11]} {[%emt 00:05:02]} Nxd5 {[%clk 00:30:34]} {[%emt
00:00:07]} 19. Nxd5 {[%clk 00:22:30]} {[%emt 00:01:51]} Bxd5 {[%clk 00:30:31]}
{[%emt 00:00:14]} 20. Qf2 {[%clk 00:20:23]} {[%emt 00:02:16]} Ng6 {[%clk
00:28:05]} {[%emt 00:02:36]} 21. Nf3 {[%clk 00:17:34]} {[%emt 00:02:59]} Rd7
{[%clk 00:21:11]} {[%emt 00:07:04]} 22. Bb6 {[%clk 00:15:01]} {[%emt 00:02:43]}
Qb7 {[%clk 00:20:12]} {[%emt 00:01:09]} 23. Bc5 {[%clk 00:13:39]} {[%emt
00:01:32]} Nf4 {[%clk 00:17:57]} {[%emt 00:02:26]} 24. Bd3 {[%clk 00:11:04]}
{[%emt 00:02:44]} Bxc5 {[%clk 00:10:39]} {[%emt 00:07:28]} 25. Qxc5 {[%clk
00:11:13]} {[%emt 00:00:01]} Nxd3 {[%clk 00:10:40]} {[%emt 00:00:10]} 26. cxd3
{[%clk 00:11:17]} {[%emt 00:00:04]} Be6 {[%clk 00:09:30]} {[%emt 00:01:22]} 27.
d4 {[%clk 00:09:20]} {[%emt 00:02:07]} Rfd8 {[%clk 00:08:35]} {[%emt 00:01:05]}
28. Qe5 {[%clk 00:06:25]} {[%emt 00:03:04]} Bd5 {[%clk 00:07:17]} {[%emt
00:01:28]} 29. Rf2 {[%clk 00:05:35]} {[%emt 00:01:01]} h6 {[%clk 00:04:04]}
{[%emt 00:03:23]} 30. Rd1 {[%clk 00:05:04]} {[%emt 00:00:39]} Qb6 {[%clk
00:03:39]} {[%emt 00:00:36]} 31. Nh4 {[%clk 00:04:11]} {[%emt 00:01:03]} Bb3
{[%clk 00:02:31]} {[%emt 00:01:19]} 32. Rd3 {[%clk 00:03:52]} {[%emt 00:00:28]}
Be6 {[%clk 00:02:16]} {[%emt 00:00:26]} 33. Rfd2 {[%clk 00:02:55]} {[%emt
00:01:07]} Rd5 {[%clk 00:01:40]} {[%emt 00:00:46]} 34. Qe3 {[%clk 00:02:57]}
{[%emt 00:00:07]} Rc8 {[%clk 00:01:18]} {[%emt 00:00:32]} 35. Rc3 {[%clk
00:02:26]} {[%emt 00:00:41]} Rcd8 {[%clk 00:01:27]} {[%emt 00:00:01]} 36. Rcd3
{[%clk 00:02:35]} R5d6 {[%clk 00:01:21]} {[%emt 00:00:16]} 37. Nf3 {[%clk
00:02:17]} {[%emt 00:00:28]} Bc4 {[%clk 00:01:06]} {[%emt 00:00:26]} 38. Rc3
{[%clk 00:02:18]} {[%emt 00:00:08]} Re6 {[%clk 00:01:01]} {[%emt 00:00:15]} 39.
Qf2 {[%clk 00:01:15]} {[%emt 00:01:13]} Bd5 {[%clk 00:00:47]} {[%emt 00:00:25]}
40. Ne5 {[%clk 00:00:55]} {[%emt 00:00:29]} Rf6 {[%clk 00:00:47]} {[%emt
00:00:10]} 41. Qh4 {[%clk 00:00:56]} {[%emt 00:00:09]} Re8 {[%clk 00:00:31]}
{[%emt 00:00:27]} 42. Rg3 {[%clk 00:00:54]} {[%emt 00:00:11]} Rxe5 {[%clk
00:00:23]} {[%emt 00:00:18]} 43. Qxf6 {[%clk 00:01:02]} {[%emt 00:00:02]} Qxf6
{[%clk 00:00:32]} {[%emt 00:00:02]} 0-1

[Event "Skol-SM i Schack 2024, Grupp A"]
[Site "Arena Varberg, Kattegattsvagen 26, Varberg, Sweden"]
[Date "2024.10.12"]
[Round "3.2"]
[White "Persson Holm, Simon"]
[Black "Kleist, Axel"]
[Result "0-1"]
[TimeControl "45 minutes + 10 seconds per move from move one."]
[WhiteFideId "1744380"]
[BlackFideId "1764322"]
[WhiteElo "1737"]
[BlackElo "1912"]

1. d4 {[%clk 00:45:19]} {[%emt 00:21:08]} e6 {[%clk 00:45:16]} {[%emt
00:00:04]} 2. c4 {[%clk 00:45:20]} {[%emt 00:00:09]} f5 {[%clk 00:45:22]}
{[%emt 00:00:04]} 3. Nc3 {[%clk 00:45:24]} {[%emt 00:00:06]} Nf6 {[%clk
00:45:27]} {[%emt 00:00:05]} 4. Bg5 {[%clk 00:45:12]} {[%emt 00:00:22]} Bb4
{[%clk 00:45:03]} {[%emt 00:00:34]} 5. e3 {[%clk 00:43:48]} {[%emt 00:01:34]}
Bxc3+ {[%clk 00:44:00]} {[%emt 00:01:14]} 6. bxc3 {[%clk 00:43:50]} {[%emt
00:00:07]} b6 {[%clk 00:38:49]} {[%emt 00:05:21]} 7. Qf3 {[%clk 00:36:54]}
{[%emt 00:07:06]} Nc6 {[%clk 00:38:48]} {[%emt 00:00:11]} 8. d5 {[%clk
00:36:23]} {[%emt 00:00:41]} Ne5 {[%clk 00:38:40]} {[%emt 00:00:18]} 9. Qg3
{[%clk 00:34:12]} {[%emt 00:02:22]} d6 {[%clk 00:31:29]} {[%emt 00:07:20]} 10.
Be2 {[%clk 00:29:04]} {[%emt 00:05:17]} Ne4 {[%clk 00:15:41]} {[%emt 00:15:59]}
11. Bxd8 {[%clk 00:27:47]} {[%emt 00:01:27]} Nxg3 {[%clk 00:15:45]} {[%emt
00:00:07]} 12. hxg3 {[%clk 00:27:32]} {[%emt 00:00:24]} Kxd8 {[%clk 00:15:47]}
{[%emt 00:00:08]} 13. Nf3 {[%clk 00:25:35]} {[%emt 00:02:07]} Nxf3+ {[%clk
00:15:12]} {[%emt 00:00:45]} 14. Bxf3 {[%clk 00:25:39]} {[%emt 00:00:06]} e5
{[%clk 00:15:06]} {[%emt 00:00:16]} 15. O-O-O {[%clk 00:20:28]} {[%emt
00:05:21]} a5 {[%clk 00:12:43]} {[%emt 00:02:33]} 16. Rh4 {[%clk 00:18:32]}
{[%emt 00:02:05]} Ke7 {[%clk 00:11:24]} {[%emt 00:01:29]} 17. g4 {[%clk
00:15:47]} {[%emt 00:02:55]} fxg4 {[%clk 00:10:48]} {[%emt 00:00:47]} 18. Bxg4
{[%clk 00:15:41]} {[%emt 00:00:15]} g5 {[%clk 00:10:24]} {[%emt 00:00:35]} 19.
Bxc8 {[%clk 00:14:57]} {[%emt 00:00:54]} gxh4 {[%clk 00:10:26]} {[%emt
00:00:07]} 20. Be6 {[%clk 00:12:26]} {[%emt 00:02:42]} Raf8 {[%clk 00:10:25]}
{[%emt 00:00:10]} 21. f3 {[%clk 00:12:22]} {[%emt 00:00:14]} Rf6 {[%clk
00:10:15]} {[%emt 00:00:20]} 22. Rh1 {[%clk 00:11:54]} {[%emt 00:00:38]} Rh6
{[%clk 00:09:22]} {[%emt 00:01:03]} 23. g3 {[%clk 00:10:19]} {[%emt 00:01:46]}
hxg3 {[%clk 00:08:25]} {[%emt 00:01:07]} 24. Rg1 {[%clk 00:09:20]} {[%emt
00:01:08]} Rg6 {[%clk 00:08:16]} {[%emt 00:00:19]} 25. Bg4 {[%clk 00:07:03]}
{[%emt 00:02:27]} h5 {[%clk 00:08:05]} {[%emt 00:00:21]} 0-1